fUST/lending_fUST_20260129
["ID","MTS","AMOUNT","RATE_DAILY","PERIOD"]
[403973386,1769701488990,-164.0,0.00037534,101]
[403973387,1769701489036,-1005.68,0.00037571,60]
[403973388,1769701489079,-1005.68,0.00037671,60]
[403973389,1769701489127,-1005.68,0.00037771,60]
[403973390,1769701489172,-1005.68,0.00037871,60]
[403973391,1769701489215,-1391.87724,0.000379,120]
[403973392,1769701489259,-463.95908,0.000379,120]
[403973393,1769701489303,-1005.68,0.00037971,60]
[403973394,1769701489347,-158.0,0.00038,120]
[403973395,1769701489390,-1017.57323575,0.00038,30]
[403973396,1769701489433,-300.0,0.00038,120]
[403973397,1769701489474,-4009.91515962,0.00038,30]
[403973398,1769701489516,-1005.68,0.00038071,60]
[403973399,1769701489557,-1279.91,0.00038082,38]
[403973400,1769701489599,-2154.25,0.00038082,120]
[403973401,1769701489644,-209.07,0.000381,120]
[403973402,1769701489687,-1005.68,0.00038171,60]
[403973403,1769701489729,-1005.68,0.00038271,60]
[403973404,1769701489771,-1005.68,0.00038371,120]
[403973405,1769701489814,-830.37297552,0.00038407,120]
[403973406,1769701489857,-1005.68,0.00038471,120]
[403973407,1769701489898,-1005.68,0.00038571,120]
[403973408,1769701489938,-1279.91,0.0003863,39]
[403973409,1769701489979,-313.49245058,0.0003867,120]
[403973410,1769701490028,-1005.68,0.00038671,120]
[403973411,1769701490070,-5083.044866,0.0003875,60]
[403973412,1769701490278,-1005.68,0.00038771,120]
[403973413,1769701490316,-1005.68,0.00038871,120]
[403973414,1769701490353,-1235.03078611,0.00038875,60]
[403973415,1769701490389,-1005.68,0.00038971,120]
[403973416,1769701490425,-2148.06027739,0.00039,120]
[403973417,1769701490461,-389.76755398,0.00039,120]
[403973418,1769701490497,-300.0,0.00039,120]
[403973419,1769701490532,-2218.09,0.00039,30]
[403973420,1769701490568,-551.0,0.00039046,120]
[403973421,1769701490603,-169.0,0.00039046,120]
[403973422,1769701490641,-1005.68,0.00039071,120]
[403973423,1769701490680,-1005.68,0.00039171,120]
[403973424,1769701490718,-1279.91,0.00039178,40]
[403973425,1769701490758,-2154.25,0.00039178,120]
[403973426,1769701490796,-156.0,0.00039267,90]
[403973427,1769701490837,-1005.68,0.00039271,120]
[403973428,1769701490876,-200.0,0.00039302,120]
[403973429,1769701490917,-1005.68,0.00039371,120]
[403973430,1769701490957,-1005.68,0.00039471,120]
[403973431,1769701490995,-5047.33473502,0.00039495,69]
[403973432,1769701491038,-1005.68,0.00039571,120]
[403973433,1769701491076,-5000.0,0.00039591,72]
[403973434,1769701491113,-1391.87724,0.000396,120]
[403973435,1769701491151,-463.95908,0.000396,120]
[403973436,1769701491189,-200.0,0.00039646,120]
[403973437,1769701491229,-1005.68,0.00039671,120]
[403973438,1769701491266,-1279.91,0.00039726,41]
[403973439,1769701491305,-1005.68,0.00039771,120]
[403973440,1769701491343,-1005.68,0.00039871,120]
[403973441,1769701491383,-200.0,0.00039872,120]
[403973442,1769701491420,-742.33448221,0.00039877,120]
[403973443,1769701491459,-1376.8244658,0.0003989,120]
[403973444,1769701491497,-158.0,0.000399,120]
[403973445,1769701491533,-1005.68,0.00039971,120]
[403973446,1769701491572,-366.6510295,0.00039999,31]
[403973447,1769701491609,-500.0,0.00039999,31]
[403973448,1769701491645,-250.507461,0.00039999,31]
[403973449,1769701491680,-606.56984545,0.00039999,31]
[403973450,1769701491714,-762.29553982,0.0004,120]
[403973451,1769701491747,-1137.05149782,0.0004,30]
[403973452,1769701491780,-2477254.14431763,0.0004,120]
[403973453,1769701491952,-170.28303046,0.00010144,2]
[403973454,1769701492142,-420.0,0.00034544,60]
[403973455,1769701492179,-500.0,0.00034544,30]
[403973456,1769701492216,-500.0,0.00034544,30]
[403973457,1769701492253,-500.0,0.00034544,30]
[403973458,1769701492291,-500.0,0.00034544,30]
[403973459,1769701492329,-500.0,0.00034544,30]
[403973460,1769701492368,-500.0,0.00034544,30]
[403973461,1769701492409,-500.0,0.00034544,30]
[403973462,1769701492448,-500.0,0.00034544,30]
[403973463,1769701492485,-319.46028734,0.00034544,30]
[403973464,1769701492520,-500.0,0.00034544,30]
[403973465,1769701492556,-452.74610098,0.00034544,30]
[403973466,1769701492592,-500.0,0.00034544,30]
[403973467,1769701492630,-515.366398,0.00034544,30]
[403973468,1769701492666,-429.64196549,0.00034544,30]
[403973469,1769701492701,-500.0,0.00034544,60]
[403973470,1769701492735,-500.0,0.00034544,60]
[403973471,1769701492770,-500.0,0.00034544,60]
[403973472,1769701492804,-500.0,0.00034544,60]
[403973473,1769701492841,-500.0,0.00034544,60]
[403973474,1769701492876,-500.0,0.00034544,60]
[403973475,1769701492915,-500.0,0.00034544,60]
[403973476,1769701492950,-500.0,0.00034544,60]
[403973477,1769701492986,-500.0,0.00034544,60]
[403973478,1769701493027,-572.44761677,0.00034544,60]
[403973479,1769701493198,-850.10329035,0.00034544,30]
[403973480,1769701493238,-519.25377369,0.00034544,30]
[403973481,1769701493277,-1048.38102093,0.00034544,30]
[403973482,1769701493316,-151.0,0.00034544,60]
[403973483,1769701493356,-151.0,0.00034544,60]
[403973484,1769701493396,-151.0,0.00034544,60]
[403973485,1769701493435,-151.0,0.00034544,60]
[403973486,1769701493474,-151.0,0.00034544,60]
[403973487,1769701493514,-151.0,0.00034544,60]
[403973488,1769701493553,-578.1187383,0.00034544,60]
[403973489,1769701493593,-151.0,0.00034544,60]
[403973490,1769701493634,-3158.59302675,0.00034544,30]
[403973491,1769701493675,-216.26267215,0.00034544,30]
[403973492,1769701493713,-238.00813153,0.00034544,30]
[403973493,1769701493752,-1196.16081723,0.00034544,60]
[403973494,1769701493790,-199.94561973,0.00034544,31]
[403973495,1769701493828,-206.8344602,0.00034544,30]
[403973496,1769701493868,-1422.70470911,0.00034544,30]
[403973497,1769701493912,-453.27078818,0.00034544,60]
[403973498,1769701493952,-199.75813368,0.00034544,30]
[403973499,1769701493990,-1703.56114338,0.00034544,30]
[403973500,1769701494039,-1005.70542734,0.00034544,30]
[403973501,1769701494077,-349.5816199,0.00034544,30]
[403973502,1769701494115,-435.9651528,0.00034544,33]
[403973503,1769701494153,-555.27342332,0.00034544,30]
[403973504,1769701494194,-369.63086862,0.00034544,31]
[403973505,1769701494231,-952.10514754,0.00034544,30]
[403973506,1769701494268,-607.14573881,0.00034544,30]
[403973507,1769701494303,-902.36,0.00034544,30]
[403973508,1769701494338,-902.36,0.00034544,30]
[403973509,1769701494372,-902.36,0.00034544,30]
[403973510,1769701494406,-902.36,0.00034544,30]
[403973511,1769701494439,-902.36,0.00034544,30]
[403973512,1769701494471,-902.36,0.00034544,30]
[403973513,1769701494502,-902.36,0.00034544,30]
[403973514,1769701494534,-902.36,0.00034544,30]
[403973515,1769701494565,-902.36,0.00034544,30]
[403973516,1769701494600,-902.36,0.00034544,30]
[403973517,1769701494637,-902.36,0.00034544,30]
[403973518,1769701494672,-902.36,0.00034544,30]
[403973519,1769701494707,-902.36,0.00034544,30]
[403973520,1769701494741,-902.36,0.00034544,30]
[403973521,1769701494775,-902.36,0.00034544,30]
[403973522,1769701494810,-902.36,0.00034544,30]
[403973523,1769701494851,-902.36,0.00034544,30]
[403973524,1769701494888,-902.36,0.00034544,30]
[403973525,1769701494922,-902.36,0.00034544,30]
[403973526,1769701494956,-902.36,0.00034544,30]
[403973527,1769701494989,-902.36,0.00034544,30]
[403973528,1769701495023,-902.36,0.00034544,30]
[403973529,1769701495056,-902.36,0.00034544,30]
[403973530,1769701495088,-902.43431607,0.00034544,30]
[403973531,1769701495121,-500.0,0.00034544,60]
[403973532,1769701495153,-500.0,0.00034544,60]
[403973533,1769701495184,-500.0,0.00034544,60]
[403973534,1769701495220,-526.72866427,0.00034544,60]
[403973535,1769701495255,-500.0,0.00034544,30]
[403973536,1769701495291,-514.86837574,0.00034544,30]
[403973537,1769701495326,-500.0,0.00034544,60]
[403973538,1769701495362,-202.40776996,0.00034544,60]
[403973539,1769701495398,-796.27031634,0.00034544,30]
[403973540,1769701495436,-500.0,0.00034544,30]
[403973541,1769701495472,-500.0,0.00034544,30]
[403973542,1769701495512,-460.0,0.00034544,30]
[403973543,1769701495550,-500.64736132,0.00034544,30]
[403973544,1769701495590,-1624.12,0.00034544,90]
[403973545,1769701495628,-1624.12,0.00034544,90]
[403973546,1769701495670,-1624.12,0.00034544,90]
[403973547,1769701495709,-1624.12,0.00034544,90]
[403973548,1769701495748,-1624.12,0.00034544,90]
[403973549,1769701495787,-1624.12,0.00034544,90]
[403973550,1769701495827,-1624.12,0.00034544,90]
[403973551,1769701495867,-1624.12,0.00034544,90]
[403973552,1769701495906,-1624.12,0.00034544,90]
[403973553,1769701495943,-1624.12,0.00034544,90]
[403973554,1769701495981,-1624.12,0.00034544,90]
[403973555,1769701496021,-1624.12,0.00034544,90]
[403973556,1769701496059,-1624.12,0.00034544,90]
[403973557,1769701496097,-1624.12,0.00034544,90]
[403973558,1769701496137,-1624.12,0.00034544,90]
[403973559,1769701496260,-1624.12,0.00034544,90]
[403973560,1769701496321,-1624.12,0.00034544,90]
[403973561,1769701496359,-1624.12,0.00034544,90]
[403973562,1769701496399,-1624.12,0.00034544,90]
[403973563,1769701496439,-1624.12,0.00034544,90]
[403973564,1769701496478,-1624.12,0.00034544,90]
[403973565,1769701496518,-1624.12,0.00034544,90]
[403973566,1769701496554,-1624.12,0.00034544,90]
[403973567,1769701496591,-1624.24176837,0.00034544,90]
[403973568,1769701496626,-510.83,0.00034544,30]
[403973569,1769701496662,-510.83,0.00034544,30]
[403973570,1769701496697,-510.83,0.00034544,30]
[403973571,1769701496730,-510.83,0.00034544,30]
[403973572,1769701496764,-510.83,0.00034544,30]
[403973573,1769701496798,-510.83,0.00034544,30]
[403973574,1769701496831,-510.83,0.00034544,30]
[403973575,1769701496863,-510.83,0.00034544,30]
[403973576,1769701496896,-510.83,0.00034544,30]
[403973577,1769701496929,-510.83,0.00034544,30]
[403973578,1769701496961,-510.83,0.00034544,30]
[403973579,1769701496995,-510.83,0.00034544,30]
[403973580,1769701497029,-510.83,0.00034544,30]
[403973581,1769701497066,-510.83,0.00034544,30]
[403973582,1769701497104,-510.83,0.00034544,30]
[403973583,1769701497141,-510.83,0.00034544,30]
[403973584,1769701497175,-510.83,0.00034544,30]
[403973585,1769701497208,-510.83,0.00034544,30]
[403973586,1769701497242,-510.83,0.00034544,30]
[403973587,1769701497275,-510.83,0.00034544,30]
[403973588,1769701497311,-510.83,0.00034544,30]
[403973589,1769701497347,-510.83,0.00034544,30]
[403973590,1769701497382,-510.83,0.00034544,30]
[403973591,1769701497418,-510.87355607,0.00034544,30]
[403973592,1769701497453,-15152.08280114,0.00034544,30]
[403973593,1769701497487,-148637.82792077,0.00034544,30]
[403973594,1769701497521,-125979.73650101,0.00034544,30]
[403973595,1769701497554,-199999.999997,0.00034544,30]
[403973596,1769701497587,-77479.62332704,0.00034544,30]
[403973597,1769701497620,-1373133.00077552,0.00034544,30]
[403973598,1769701497653,-284089.43964762,0.00034544,30]
[403973599,1769701497684,-9862.0,0.00034544,60]
[403973600,1769701497716,-800.0,0.00034544,40]
[403973601,1769701497749,-500.0,0.00034544,31]
[403973602,1769701497782,-500.0,0.00034544,31]
[403973603,1769701497814,-500.0,0.00034544,31]
[403973604,1769701497847,-500.0,0.00034544,31]
[403973605,1769701497879,-500.0,0.00034544,31]
[403973606,1769701497913,-500.0,0.00034544,31]
[403973607,1769701497947,-500.0,0.00034544,31]
[403973608,1769701497982,-500.0,0.00034544,31]
[403973609,1769701498018,-500.0,0.00034544,31]
[403973610,1769701498059,-500.0,0.00034544,31]
[403973611,1769701498096,-500.0,0.00034544,31]
[403973612,1769701498133,-500.0,0.00034544,31]
[403973613,1769701498172,-500.0,0.00034544,31]
[403973614,1769701498210,-1000.09,0.00034544,90]
[403973615,1769701498250,-283.233746,0.00034544,40]
[403973616,1769701498411,-300.0,0.00010144,2]
[403973617,1769701498711,-205.05180049,0.00010144,2]
[403973618,1769701500434,-304.54,0.00010144,2]
[403973625,1769701504099,-289.49398879,0.00010143,2]
[403973631,1769701573354,-287.0,0.00010143,2]
[403973632,1769701573392,-1200.0,0.00010143,2]
[403973633,1769701573430,-300.0,0.00010143,2]
[403973634,1769701583712,5000.0,0.00010143,2]
[403973638,1769701595014,-4709.33300357,0.00010144,2]
[403973639,1769701595047,-10000.01,0.00010144,2]
[403973640,1769701595101,-10000.01,0.00010144,2]
[403973641,1769701595275,-10000.01,0.00010144,2]
[403973642,1769701595451,-10000.01,0.00010144,2]
[403973643,1769701600943,-10000.01,0.00010144,2]
[403973644,1769701601075,-10000.01,0.00010144,2]
[403973645,1769701601238,-10000.01,0.00010144,2]
[403973646,1769701601450,-10000.01,0.00010144,2]
[403973647,1769701601599,-10000.01,0.00010144,2]
[403973649,1769701615897,-243.40344553,9.943e-05,2]
[403973651,1769701621806,5000.0,9.893e-05,2]
[403973652,1769701622452,-401.22966352,9.943e-05,2]
[403973653,1769701623992,-281.83220911,9.943e-05,2]
[403973654,1769701625600,-285.32908462,9.943e-05,2]
[403973655,1769701631290,-526.825108,9.943e-05,2]
[403973656,1769701632818,-326.4860283,9.943e-05,2]
[403973659,1769701638167,-184.43475781,9.943e-05,2]
[403973661,1769701640891,-200.90478433,9.943e-05,2]
[403973662,1769701643575,5000.0,9.893e-05,2]
[403973663,1769701646918,-170.87,9.9e-05,2]
[403973664,1769701646942,-128.35043144,9.943e-05,2]
[403973665,1769701649688,-700.77956856,9.943e-05,2]
[403973666,1769701651782,-300.80359074,9.943e-05,2]
[403973669,1769701654466,-129.18430543,9.943e-05,2]
[403973670,1769701654493,-228.17041176,0.00010042,2]
[403973675,1769701665484,0.01,9.893e-05,2]
[403973676,1769701665518,4999.99,9.893e-05,2]
[403973684,1769701687489,5000.0,9.893e-05,2]
[403973686,1769701710656,0.02,9.893e-05,2]
[403973687,1769701710688,4999.98,9.893e-05,2]
[403973688,1769701732756,5000.0,9.893e-05,2]
[403973696,1769701754711,0.03,9.893e-05,2]
[403973697,1769701754740,4999.97,9.893e-05,2]
[403973699,1769701775068,478.81833065,9.703e-05,2]
[403973700,1769701777084,4521.22166935,9.893e-05,2]
[403973701,1769701777117,478.77833065,9.893e-05,2]
[403973706,1769701789291,5000.0,9.893e-05,2]
[403973709,1769701804404,4521.23166935,9.893e-05,2]
[403973710,1769701804442,478.76833065,9.893e-05,2]
[403973712,1769701827386,5000.0,9.893e-05,2]
[403973743,1769701832041,-524.86494536,0.00010044,2]
[403973744,1769701832052,-4475.13505464,0.00010044,2]
[403973745,1769701832062,-183.90874196,0.00010145,2]
[403973746,1769701832071,-562.0,0.00010145,2]
[403973747,1769701832080,-186.73775277,0.00010215,2]
[403973748,1769701832089,-300.0,0.00010245,2]
[403973749,1769701832099,-1200.0,0.00010245,2]
[403973751,1769701832109,-1944791.52304847,0.00010246,2]
[403973753,1769701832118,-2743.61269516,0.00010315,2]
[403973755,1769701832127,-58090.50281904,0.00010415,2]
[403973758,1769701832137,-300.0,0.00010552,2]
[403973761,1769701832147,-300.0,0.00010552,2]
[403973764,1769701832157,-300.0,0.00010552,2]
[403973766,1769701832167,-300.0,0.00010552,2]
[403973768,1769701832179,-300.0,0.00010552,2]
[403973770,1769701832189,-300.0,0.00010552,2]
[403973772,1769701832199,-300.0,0.00010552,2]
[403973773,1769701832208,-300.0,0.00010552,2]
[403973774,1769701832224,-300.0,0.00010552,2]
[403973775,1769701832233,-300.0,0.00010552,2]
[403973776,1769701832243,-300.0,0.00010552,2]
[403973777,1769701832253,-300.0,0.00010552,2]
[403973778,1769701832263,-300.0,0.00010552,2]
[403973779,1769701832273,-300.0,0.00010552,2]
[403973780,1769701832283,-300.0,0.00010552,2]
[403973781,1769701832293,-600.0,0.00010552,2]
[403973782,1769701832303,-8331.65054876,0.00010552,2]
[403973783,1769701832313,-773.70398751,0.00010853,2]
[403973784,1769701832323,-151.0,0.00011,2]
[403973785,1769701832332,-151.0,0.00011,2]
[403973786,1769701832341,-151.0,0.00011,2]
[403973787,1769701832353,-151.0,0.00011,2]
[403973788,1769701832363,-1915.27332261,0.00011038,2]
[403973789,1769701832372,-420.0,0.00011267,2]
[403973790,1769701832382,-9067.88415891,0.00011533,2]
[403973791,1769701832392,-898.62732015,0.00011533,2]
[403973792,1769701832402,-720.0,0.00011607,2]
[403973793,1769701832411,-533.196166,0.00011668,2]
[403973794,1769701832420,-746.9524177,0.00012057,2]
[403973795,1769701832433,-217.01231552,0.00012145,2]
[403973796,1769701832446,-533.196166,0.00012159,2]
[403973797,1769701832455,-4309.36497588,0.00012373,2]
[403973798,1769701832465,-587.0,0.0001239,2]
[403973799,1769701832476,-13659.452831,0.00012544,2]
[403973800,1769701832486,-3094.81595005,0.00012548,2]
[403973801,1769701832496,-533.196166,0.0001265,2]
[403973802,1769701832507,-864.0,0.00012768,2]
[403973803,1769701832517,-533.196166,0.00013142,2]
[403973804,1769701832527,-250.0,0.00013269,2]
[403973805,1769701832537,-500.0,0.00013273,2]
[403973806,1769701832547,-500.0,0.00013273,2]
[403973807,1769701832557,-500.0,0.00013273,2]
[403973808,1769701832568,-500.0,0.00013273,2]
[403973809,1769701832577,-500.0,0.00013273,2]
[403973810,1769701832587,-500.0,0.00013273,2]
[403973811,1769701832597,-500.0,0.00013273,2]
[403973812,1769701832608,-500.0,0.00013273,2]
[403973813,1769701832618,-500.0,0.00013273,2]
[403973814,1769701832628,-536.76797533,0.00013273,2]
[403973815,1769701832637,-218.50816465,0.00013273,2]
[403973816,1769701832646,-500.0,0.00013273,2]
[403973817,1769701832656,-500.0,0.00013273,2]
[403973818,1769701832665,-167.9297864,0.00013273,2]
[403973819,1769701832675,-549.17716233,0.00013273,2]
[403973820,1769701832686,-500.0,0.00013273,2]
[403973821,1769701832695,-549.00671497,0.00013273,2]
[403973822,1769701832705,-500.0,0.00013273,2]
[403973823,1769701832715,-500.0,0.00013273,2]
[403973824,1769701832725,-501.83727549,0.00013273,2]
[403973825,1769701832735,-500.0,0.00013273,2]
[403973826,1769701832745,-500.0,0.00013273,2]
[403973827,1769701832754,-161.6192891,0.00013273,2]
[403973828,1769701832764,-316.86005023,0.00013273,2]
[403973829,1769701832773,-500.0,0.00013273,2]
[403973830,1769701832783,-500.0,0.00013273,2]
[403973831,1769701832792,-500.0,0.00013273,2]
[403973832,1769701832802,-500.0,0.00013273,2]
[403973833,1769701832811,-500.0,0.00013273,2]
[403973834,1769701832820,-500.0,0.00013273,2]
[403973835,1769701832829,-500.0,0.00013273,2]
[403973836,1769701832839,-500.0,0.00013273,2]
[403973837,1769701832848,-500.0,0.00013273,2]
[403973838,1769701832858,-500.0,0.00013273,2]
[403973839,1769701832867,-500.0,0.00013273,2]
[403973840,1769701832877,-500.0,0.00013273,2]
[403973841,1769701832886,-500.0,0.00013273,2]
[403973842,1769701832896,-217.62261144,0.00013273,2]
[403973843,1769701832905,-162.28812704,0.00013273,2]
[403973844,1769701832914,-500.0,0.00013273,2]
[403973845,1769701832924,-500.0,0.00013273,2]
[403973846,1769701832937,-500.0,0.00013273,2]
[403973847,1769701832947,-500.0,0.00013273,2]
[403973848,1769701832956,-500.0,0.00013273,2]
[403973849,1769701832966,-165.96638872,0.00013273,2]
[403973850,1769701832976,-500.0,0.00013273,2]
[403973851,1769701832985,-500.0,0.00013273,2]
[403973852,1769701832995,-162.52274592,0.00013273,2]
[403973853,1769701833005,-500.0,0.00013273,2]
[403973854,1769701833015,-500.0,0.00013273,2]
[403973855,1769701833024,-500.0,0.00013273,2]
[403973856,1769701833034,-233.02595063,0.00013273,2]
[403973857,1769701833043,-500.0,0.00013273,2]
[403973858,1769701833053,-159.74515792,0.00013273,2]
[403973859,1769701833064,-619.456376,0.00013273,2]
[403973860,1769701833074,-500.0,0.00013273,2]
[403973861,1769701833084,-500.0,0.00013273,2]
[403973862,1769701833096,-172.04906802,0.00013273,2]
[403973863,1769701833107,-502.31062213,0.00013273,2]
[403973864,1769701833117,-500.0,0.00013273,2]
[403973865,1769701833126,-500.0,0.00013273,2]
[403973866,1769701833136,-500.0,0.00013273,2]
[403973867,1769701833146,-500.0,0.00013273,2]
[403973868,1769701833155,-269.41265799,0.00013273,2]
[403973869,1769701833165,-500.0,0.00013273,2]
[403973870,1769701833175,-500.15361623,0.00013273,2]
[403973871,1769701833187,-500.0,0.00013273,2]
[403973872,1769701833197,-500.0,0.00013273,2]
[403973873,1769701833207,-402.96126214,0.00013273,2]
[403973874,1769701833217,-500.0,0.00013273,2]
[403973875,1769701833226,-500.0,0.00013273,2]
[403973876,1769701833236,-823.0,0.00013626,2]
[403973877,1769701833245,-533.196166,0.00013633,2]
[403973878,1769701833256,-500.0,0.00013698,2]
[403973879,1769701833270,-500.0,0.00013698,2]
[403973880,1769701833280,-500.0,0.00013698,2]
[403973881,1769701833290,-500.0,0.00013698,2]
[403973882,1769701833299,-500.0,0.00013698,2]
[403973883,1769701833309,-500.0,0.00013698,2]
[403973884,1769701833324,-518.94139039,0.00013698,2]
[403973885,1769701833336,-500.0,0.00013698,2]
[403973886,1769701833347,-500.0,0.00013698,2]
[403973887,1769701833358,-500.0,0.00013698,2]
[403973888,1769701833369,-500.0,0.00013698,2]
[403973889,1769701833382,-500.0,0.00013698,2]
[403973890,1769701833394,-500.0,0.00013698,2]
[403973891,1769701833405,-500.0,0.00013698,2]
[403973892,1769701833414,-544.76043412,0.00013698,2]
[403973893,1769701833429,-155.68153407,0.00013698,2]
[403973894,1769701833444,-500.0,0.00013698,2]
[403973895,1769701833454,-533.70108919,0.00013698,2]
[403973896,1769701833464,-500.0,0.00013698,2]
[403973897,1769701833474,-500.0,0.00013698,2]
[403973898,1769701833603,-500.0,0.00013698,2]
[403973899,1769701833612,-500.0,0.00013698,2]
[403973900,1769701833622,-500.0,0.00013698,2]
[403973901,1769701833632,-502.22690096,0.00013698,2]
[403973902,1769701833642,-883.74,0.00013698,2]
[403973903,1769701833651,-883.74,0.00013698,2]
[403973904,1769701833662,-883.74,0.00013698,2]
[403973905,1769701833672,-883.74,0.00013698,2]
[403973906,1769701833685,-883.74,0.00013698,2]
[403973907,1769701833696,-883.74,0.00013698,2]
[403973908,1769701833706,-883.74,0.00013698,2]
[403973909,1769701833718,-883.74,0.00013698,2]
[403973910,1769701833729,-883.74,0.00013698,2]
[403973911,1769701833740,-883.74,0.00013698,2]
[403973912,1769701833751,-883.74,0.00013698,2]
[403973913,1769701833762,-883.74,0.00013698,2]
[403973914,1769701833773,-883.74,0.00013698,2]
[403973915,1769701833784,-883.74,0.00013698,2]
[403973916,1769701833795,-883.74,0.00013698,2]
[403973917,1769701833805,-883.74,0.00013698,2]
[403973918,1769701833815,-883.74,0.00013698,2]
[403973919,1769701833827,-883.74,0.00013698,2]
[403973920,1769701833837,-883.74,0.00013698,2]
[403973921,1769701833848,-883.74,0.00013698,2]
[403973922,1769701833858,-883.74,0.00013698,2]
[403973923,1769701833868,-883.74,0.00013698,2]
[403973924,1769701833877,-883.74,0.00013698,2]
[403973925,1769701833887,-883.74,0.00013698,2]
[403973926,1769701833898,-500.0,0.00013698,2]
[403973927,1769701833908,-500.0,0.00013698,2]
[403973928,1769701833917,-500.0,0.00013698,2]
[403973929,1769701833932,-500.0,0.00013698,2]
[403973930,1769701833942,-500.0,0.00013698,2]
[403973931,1769701833951,-500.0,0.00013698,2]
[403973932,1769701833962,-500.0,0.00013698,2]
[403973933,1769701833972,-258.37891108,0.00013698,2]
[403973934,1769701833982,-530.03606409,0.00013698,2]
[403973935,1769701833991,-525.32488563,0.00013698,2]
[403973936,1769701834000,-617.69956601,0.00013698,2]
[403973937,1769701834010,-500.0,0.00013698,2]
[403973938,1769701834020,-500.0,0.00013698,2]
[403973939,1769701834030,-500.0,0.00013698,2]
[403973940,1769701834041,-500.0,0.00013698,2]
[403973941,1769701834050,-500.0,0.00013698,2]
[403973942,1769701834060,-500.0,0.00013698,2]
[403973943,1769701834069,-500.0,0.00013698,2]
[403973944,1769701834078,-583.95253597,0.00013698,2]
[403973945,1769701834087,-500.0,0.00013698,2]
[403973946,1769701834096,-500.0,0.00013698,2]
[403973947,1769701834105,-500.0,0.00013698,2]
[403973948,1769701834114,-500.0,0.00013698,2]
[403973949,1769701834124,-500.0,0.00013698,2]
[403973950,1769701834134,-500.0,0.00013698,2]
[403973951,1769701834143,-500.0,0.00013698,2]
[403973952,1769701834153,-500.0,0.00013698,2]
[403973953,1769701834164,-500.0,0.00013698,2]
[403973954,1769701834174,-500.0,0.00013698,2]
[403973955,1769701834187,-500.0,0.00013698,2]
[403973956,1769701834198,-500.0,0.00013698,2]
[403973957,1769701834208,-500.0,0.00013698,2]
[403973958,1769701834218,-500.0,0.00013698,2]
[403973959,1769701834229,-500.0,0.00013698,2]
[403973960,1769701834239,-500.0,0.00013698,2]
[403973961,1769701834250,-500.0,0.00013698,2]
[403973962,1769701834259,-500.0,0.00013698,2]
[403973963,1769701834273,-500.0,0.00013698,2]
[403973964,1769701834283,-500.0,0.00013698,2]
[403973965,1769701834293,-500.0,0.00013698,2]
[403973966,1769701834303,-500.0,0.00013698,2]
[403973967,1769701834314,-500.0,0.00013698,2]
[403973968,1769701834324,-500.0,0.00013698,2]
[403973969,1769701834335,-1000.0,0.00013699,2]
[403973970,1769701834347,-501.60095283,0.00013699,2]
[403973971,1769701834357,-500.84679195,0.00013699,2]
[403973972,1769701834366,-500.0,0.00013699,2]
[403973973,1769701834376,-500.0,0.00013699,2]
[403973974,1769701834386,-500.0,0.00013699,2]
[403973975,1769701834396,-500.0,0.00013699,2]
[403973976,1769701834405,-500.0,0.00013699,2]